{"text_format":"2","workbook":"xlsx","n_sheets":8,"sheets":["Főösszesítő","Munkanem összesítő","12.Felvonulási létesítmények","19.Költségtérítések","21.Irtás, föld- és sziklamunka","36.Vakolás és rabicolás","42.Hideg- és melegburkolatok k","47.Felületképzés"],"not_rendered":{"charts":0,"images":0,"macros":0,"external_links":0,"defined_names":0,"comments":0,"pivot_tables":0},"unopened":[],"bounds":{"document_bytes":16777216,"sheet_cells":100000,"run_cost":"one","rows_first":2000,"rows_last":500,"rows_between":2000,"halvings":0,"cell_chars":16384,"cell_head_chars":4096},"cells_cut":0,"cells_raw":0,"read":"whole","date_system":"1900"}

{"sheet":"Főösszesítő","index":0,"n_rows":10,"n_cols":4,"rows_kept":10,"cut":false,"hidden":false,"merged":[[0,0,0,3],[4,0,4,3],[7,2,7,3],[8,2,8,3],[9,2,9,3]]}
["SZTE Juhász Gyula Gyakorló Általános és AMI, Napközi Otthonos Óvoda"]
["Szeged, Batthyány u. 5."]
["felújítási munkák"]
[]
["Költségvetés főösszesítő"]
["Megnevezés",null,"Anyagköltség","Díjköltség"]
["1 Építmény közvetlen költségei",null,{"$f":"'Munkanem összesítő'!C8","v":0},{"$f":"'Munkanem összesítő'!D8","v":0}]
["2.1 ÁFA vetítési alap",null,{"$f":"ROUND(C7+D7,0)","v":0}]
["2.2 ÁFA",0.27,{"$f":"ROUND(C8*B9,0)","v":0}]
["3 A munka ára (HUF)",null,{"$f":"ROUND(C9+C8,0)","v":0}]

{"sheet":"Munkanem összesítő","index":1,"n_rows":8,"n_cols":4,"rows_kept":8,"cut":false,"hidden":false,"merged":[]}
["Ssz.","Megnevezés","Anyagköltség","Díjköltség"]
["12","Felvonulási létesítmények",{"$f":"'12.Felvonulási létesítmények'!H3","v":0},{"$f":"'12.Felvonulási létesítmények'!I3","v":0}]
["19","Költségtérítések",{"$f":"'19.Költségtérítések'!H3","v":0},{"$f":"'19.Költségtérítések'!I3","v":0}]
["21","Irtás, föld- és sziklamunka",{"$f":"'21.Irtás, föld- és sziklamunka'!H3","v":0},{"$f":"'21.Irtás, föld- és sziklamunka'!I3","v":0}]
["36","Vakolás és rabicolás",{"$f":"'36.Vakolás és rabicolás'!H3","v":0},{"$f":"'36.Vakolás és rabicolás'!I3","v":0}]
["42","Hideg- és melegburkolatok készítése, aljzat előkészítés",{"$f":"'42.Hideg- és melegburkolatok k'!H4","v":0},{"$f":"'42.Hideg- és melegburkolatok k'!I4","v":0}]
["47","Felületképzés",{"$f":"'47.Felületképzés'!H8","v":0},{"$f":"'47.Felületképzés'!I8","v":0}]
[null,"Összesen (HUF)",{"$f":"ROUND(SUM(C2:C7),0)","v":0},{"$f":"ROUND(SUM(D2:D7),0)","v":0}]

{"sheet":"12.Felvonulási létesítmények","index":2,"n_rows":3,"n_cols":9,"rows_kept":3,"cut":false,"hidden":false,"merged":[]}
["Ssz.","Tételszám","Tétel szövege","Menny.","Egység","Anyag egységár","Díj egységre","Anyag összesen","Díj összesen"]
[1,"12-006-11.3-0190340","Védőburkolat hevederekkel, lécvázzal, berendezési tárgyak megvédésére, műanyag fóliával, Kertészeti fólia, 0,40 mm",50,"m2",0,0,{"$f":"ROUND(F2*D2,0)","v":0},{"$f":"ROUND(G2*D2,0)","v":0}]
[null,null,"Munkanem összesen (HUF)",{"$nulls":4},{"$f":"ROUND(SUM(H2:H2),0)","v":0},{"$f":"ROUND(SUM(I2:I2),0)","v":0}]

{"sheet":"19.Költségtérítések","index":3,"n_rows":3,"n_cols":9,"rows_kept":3,"cut":false,"hidden":false,"merged":[]}
["Ssz.","Tételszám","Tétel szövege","Menny.","Egység","Anyag egységár","Díj egységre","Anyag összesen","Díj összesen"]
[1,"19-090-1","Építmények átadás előtti utolsó takarítása (pipere)",1,"db",0,0,{"$f":"ROUND(F2*D2,0)","v":0},{"$f":"ROUND(G2*D2,0)","v":0}]
[null,null,"Munkanem összesen (HUF)",{"$nulls":4},{"$f":"ROUND(SUM(H2:H2),0)","v":0},{"$f":"ROUND(SUM(I2:I2),0)","v":0}]

{"sheet":"21.Irtás, föld- és sziklamunka","index":4,"n_rows":3,"n_cols":9,"rows_kept":3,"cut":false,"hidden":false,"merged":[]}
["Ssz.","Tételszám","Tétel szövege","Menny.","Egység","Anyag egységár","Díj egységre","Anyag összesen","Díj összesen"]
[1,"21-011-11.1","Építési törmelék konténeres elszállítása, lerakása, lerakóhelyi díjjal, 3,0 m³-es konténerbe",1,"db",0,0,{"$f":"ROUND(F2*D2,0)","v":0},{"$f":"ROUND(G2*D2,0)","v":0}]
[null,null,"Munkanem összesen (HUF)",{"$nulls":4},{"$f":"ROUND(SUM(H2:H2),0)","v":0},{"$f":"ROUND(SUM(I2:I2),0)","v":0}]

{"sheet":"36.Vakolás és rabicolás","index":5,"n_rows":3,"n_cols":9,"rows_kept":3,"cut":false,"hidden":false,"merged":[]}
["Ssz.","Tételszám","Tétel szövege","Menny.","Egység","Anyag egységár","Díj egységre","Anyag összesen","Díj összesen"]
[1,"K 36-090-1.2.1-0550080","Vakolatjavítás homlokzaton, a meglazult, sérült vakolat előzetes leverésével, durva, sima kivitelben, Hvh5-mc, kültéri, vakoló cementes mészhabarcs mészpéppel",25,"m2",0,0,{"$f":"ROUND(F2*D2,0)","v":0},{"$f":"ROUND(G2*D2,0)","v":0}]
[null,null,"Munkanem összesen (HUF)",{"$nulls":4},{"$f":"ROUND(SUM(H2:H2),0)","v":0},{"$f":"ROUND(SUM(I2:I2),0)","v":0}]

{"sheet":"42.Hideg- és melegburkolatok k","index":6,"n_rows":4,"n_cols":9,"rows_kept":4,"cut":false,"hidden":false,"merged":[]}
["Ssz.","Tételszám","Tétel szövege","Menny.","Egység","Anyag egységár","Díj egységre","Anyag összesen","Díj összesen"]
[1,"42-042-6.1.2.2-0311154","Kisegítő- és részmunkák, parketta csiszolása és lakkozása, nagy igénybevételre, vízbázisú lakkal, MUREXIN AV 20 Aqua különleges alapozó MUREXIN NT 100 NANO lakk magasfényű A+B komponens",28.15,"m2",0,0,{"$f":"ROUND(F2*D2,0)","v":0},{"$f":"ROUND(G2*D2,0)","v":0}]
[2,"42-090-6.7.3-0131001","Fa-, hézagmentes és műanyagburkolatok javítása, régi vagy javított parketta burkolat felújítása, régi székléc bontás, új anyagból pótlás, Tölgy szegélyléc 32x20 mm",21.24,"m",0,0,{"$f":"ROUND(F3*D3,0)","v":0},{"$f":"ROUND(G3*D3,0)","v":0}]
[null,null,"Munkanem összesen (HUF)",{"$nulls":4},{"$f":"ROUND(SUM(H2:H3),0)","v":0},{"$f":"ROUND(SUM(I2:I3),0)","v":0}]

{"sheet":"47.Felületképzés","index":7,"n_rows":8,"n_cols":9,"rows_kept":8,"cut":false,"hidden":false,"merged":[]}
["Ssz.","Tételszám","Tétel szövege","Menny.","Egység","Anyag egységár","Díj egységre","Anyag összesen","Díj összesen"]
[1,"47-000-1.3.1.1","Belső festéseknél felület előkészítése, részmunkák; vizes diszperziós falfesték lekaparása, bármilyen padozatú helységben, tagolatlan felületen",20,"m2",0,0,{"$f":"ROUND(F2*D2,0)","v":0},{"$f":"ROUND(G2*D2,0)","v":0}]
[2,"47-000-1.21.4.1.1-0154080","Belső festéseknél felület előkészítése, részmunkák; glettelés, diszperziós kötőanyagú glettel, vakolt felületen, tagolatlan felületen, StoLevell In XXL diszperzió alapú, szerves kötésű natúrfehér glett, ásványi és szerves aljzatokon, Cikkszám: 00749-xxx",20,"m2",0,0,0,0]
[3,"47-010-1.1.1-0418316","Normál nem egyenletes nedvszívóképességű ásványi falfelületek alapozása, felületmegerősítése, vizes-diszperziós akril bázisú alapozóval, tagolatlan felületen, Caparol CapaGrund Universal pigmentált, tapadás javító kül- és beltéri alapozó, fehér, ásványi alapú falfelületekre, régi műgyantavakolatokra, hőszigetelő rendszerekre",313.39999999999998,"m2",0,0,0,0]
[4,"47-011-15.1.2.1-0159471","Diszperziós festés (két rétegben) műanyag bázisú vizes-diszperziós  fehér vagy gyárilag színezett festékkel, új vagy régi lekapart, előkészített alapfelületen  vagy jól tapadó meglévő festékrétegen, beton felületen, két rétegben, tagolatlan sima felületen, Caparol Extra mosásálló, kimagaslóan fedő diszperziós beltéri falfesték, matt, fehér, fedőképesség: 1. kategória",215,"m2",0,0,0,0]
[5,"47-013-15.1.1.1.1-0159412","Diszperziós festések, akril kötőanyagú vizes-diszperziós, fehér vagy színes homlokzatfestés, megfelelően előkészített ásványi alapfelületen vagy meglévő jól tapadó festékrétegen, vakolaton, két rétegben, egy vagy több színben, tagolatlan sima felületen, Caparol AcrylStar jól fedő- és töltőképességű időjárásálló homlokzatfesték, I. színcsoport",98.4,"m2",0,0,0,0]
[6,"47-011-5.1.1.1","Olajfestések, ólommentes olaj kötőanyagú, fehér vagy színes falfestékkel, ásványi alapfelületen, régi jól tapadó festékrétegen, egy rétegben, tagolatlan sima felületen",11,"m2",0,0,0,0]
[null,null,"Munkanem összesen (HUF)",{"$nulls":4},{"$f":"ROUND(SUM(H2:H7),0)","v":0},{"$f":"ROUND(SUM(I2:I7),0)","v":0}]